[Event "The Schackveckan 2023: Göteborg open"]
[Site "Göteborgs schackcentrum, Vegagatan 20, Gothenburg, Sweden"]
[Date "2023.08.11"]
[Round "1.6"]
[White "Eriksson, Kristian"]
[Black "Lindholm, Marcus"]
[Result "1/2-1/2"]
[TimeControl "15 minutes + 5 seconds per move from move one (Round 1 - 4) / 90 minutes + 30 seconds per move from move one (Round 5 - 8)"]
[WhiteFideId "1705172"]
[BlackFideId "1743473"]
[WhiteElo "2057"]
[BlackElo "1708"]

1. e4 {[%clk 00:15:07]} {[%emt 00:00:03]} c5 {[%clk 00:15:09]} {[%emt
00:00:02]} 2. Nc3 {[%clk 00:15:08]} {[%emt 00:00:03]} Nc6 {[%clk 00:15:11]}
{[%emt 00:00:03]} 3. Bb5 {[%clk 00:15:09]} {[%emt 00:00:04]} Nd4 {[%clk
00:15:06]} {[%emt 00:00:10]} 4. Bc4 {[%clk 00:15:10]} {[%emt 00:00:03]} e6
{[%clk 00:15:08]} {[%emt 00:00:03]} 5. Nf3 {[%clk 00:15:09]} {[%emt 00:00:06]}
Ne7 {[%clk 00:14:49]} {[%emt 00:00:24]} 6. O-O {[%clk 00:14:56]} {[%emt
00:00:16]} g6 {[%clk 00:14:43]} {[%emt 00:00:13]} 7. d3 {[%clk 00:14:03]}
{[%emt 00:00:58]} Bg7 {[%clk 00:14:44]} {[%emt 00:00:04]} 8. Re1 {[%clk
00:13:39]} {[%emt 00:00:29]} O-O {[%clk 00:14:45]} {[%emt 00:00:05]} 9. Nxd4
{[%clk 00:12:32]} {[%emt 00:01:12]} cxd4 {[%clk 00:14:35]} {[%emt 00:00:15]} 10.
Ne2 {[%clk 00:12:28]} {[%emt 00:00:08]} d5 {[%clk 00:14:19]} {[%emt 00:00:22]}
11. Bb3 {[%clk 00:12:31]} {[%emt 00:00:03]} a5 {[%clk 00:13:55]} {[%emt
00:00:29]} 12. a4 {[%clk 00:12:24]} {[%emt 00:00:11]} dxe4 {[%clk 00:13:40]}
{[%emt 00:00:21]} 13. dxe4 {[%clk 00:12:26]} {[%emt 00:00:02]} e5 {[%clk
00:13:43]} 14. Ng3 {[%clk 00:11:58]} {[%emt 00:00:34]} Kh8 {[%clk 00:13:03]}
{[%emt 00:00:45]} 15. f4 {[%clk 00:10:55]} {[%emt 00:01:08]} Qd6 {[%clk
00:12:44]} {[%emt 00:00:25]} 16. Rf1 {[%clk 00:09:58]} {[%emt 00:01:02]} f5
{[%clk 00:12:08]} {[%emt 00:00:40]} 17. exf5 {[%clk 00:09:27]} {[%emt
00:00:36]} Nxf5 {[%clk 00:12:05]} {[%emt 00:00:08]} 18. Ne4 {[%clk 00:08:58]}
{[%emt 00:00:34]} Qb6 {[%clk 00:11:05]} {[%emt 00:01:06]} 19. Kh1 {[%clk
00:08:39]} {[%emt 00:00:23]} Be6 {[%clk 00:10:23]} {[%emt 00:00:48]} 20. Bxe6
{[%clk 00:08:05]} {[%emt 00:00:39]} Qxe6 {[%clk 00:10:26]} {[%emt 00:00:02]} 21.
Qe2 {[%clk 00:07:20]} {[%emt 00:00:50]} Rae8 {[%clk 00:09:10]} {[%emt
00:01:20]} 22. Ng5 {[%clk 00:06:57]} {[%emt 00:00:28]} Qc6 {[%clk 00:08:22]}
{[%emt 00:00:53]} 23. Qf3 {[%clk 00:04:14]} {[%emt 00:02:49]} Qxf3 {[%clk
00:08:08]} {[%emt 00:00:18]} 24. gxf3 {[%clk 00:03:30]} {[%emt 00:00:49]} exf4
{[%clk 00:07:44]} {[%emt 00:00:29]} 25. Bxf4 {[%clk 00:03:29]} {[%emt
00:00:06]} Ne3 {[%clk 00:07:48]} {[%emt 00:00:02]} 26. Bxe3 {[%clk 00:03:21]}
{[%emt 00:00:12]} dxe3 {[%clk 00:07:47]} {[%emt 00:00:06]} 27. c3 {[%clk
00:03:07]} {[%emt 00:00:19]} Bh6 {[%clk 00:07:38]} {[%emt 00:00:15]} 28. Ne4
{[%clk 00:02:59]} {[%emt 00:00:13]} Re7 {[%clk 00:05:27]} {[%emt 00:02:15]} 29.
Kg2 {[%clk 00:02:46]} {[%emt 00:00:18]} Rd8 {[%clk 00:04:58]} {[%emt 00:00:34]}
30. Rad1 {[%clk 00:02:18]} {[%emt 00:00:33]} Red7 {[%clk 00:04:38]} {[%emt
00:00:25]} 31. Rxd7 {[%clk 00:02:03]} {[%emt 00:00:21]} Rxd7 {[%clk 00:04:42]}
{[%emt 00:00:01]} 32. Re1 {[%clk 00:01:49]} {[%emt 00:00:18]} Kg7 {[%clk
00:04:40]} {[%emt 00:00:07]} 33. Re2 {[%clk 00:01:40]} {[%emt 00:00:14]} Rd2
{[%clk 00:04:25]} {[%emt 00:00:20]} 34. Kf1 {[%clk 00:01:30]} {[%emt 00:00:16]}
Kf7 {[%clk 00:03:47]} {[%emt 00:00:42]} 35. Rxd2 {[%clk 00:01:24]} {[%emt
00:00:11]} exd2 {[%clk 00:03:51]} {[%emt 00:00:02]} 36. Ke2 {[%clk 00:01:28]}
Bf4 {[%clk 00:03:47]} {[%emt 00:00:09]} 37. h3 {[%clk 00:01:26]} {[%emt
00:00:07]} b6 {[%clk 00:03:33]} {[%emt 00:00:19]} 38. Nxd2 {[%clk 00:01:26]}
{[%emt 00:00:05]} Ke6 {[%clk 00:03:35]} {[%emt 00:00:03]} 39. Nc4 {[%clk
00:01:21]} {[%emt 00:00:09]} Bc7 {[%clk 00:03:39]} {[%emt 00:00:02]} 40. Ke3
{[%clk 00:01:00]} {[%emt 00:00:27]} Kf5 {[%clk 00:03:38]} {[%emt 00:00:06]} 41.
h4 {[%clk 00:00:43]} {[%emt 00:00:22]} Bd8 {[%clk 00:03:23]} {[%emt 00:00:20]}
42. b4 {[%clk 00:00:25]} {[%emt 00:00:23]} axb4 {[%clk 00:03:14]} {[%emt
00:00:15]} 43. cxb4 {[%emt 00:00:19]} h5 {[%clk 00:03:00]} 44. a5 {[%clk
00:00:23]} {[%emt 00:00:11]} bxa5 {[%clk 00:02:41]} {[%emt 00:00:25]} 45. bxa5
{[%clk 00:00:27]} {[%emt 00:00:01]} Bc7 {[%clk 00:02:41]} {[%emt 00:00:04]} 46.
a6 {[%clk 00:00:26]} {[%emt 00:00:06]} Bb8 {[%clk 00:02:44]} {[%emt 00:00:02]}
47. Na5 {[%clk 00:00:12]} {[%emt 00:00:18]} Ba7+ {[%clk 00:02:45]} {[%emt
00:00:04]} 48. Ke2 {[%clk 00:00:16]} Kf4 {[%clk 00:02:45]} {[%emt 00:00:06]} 49.
Nc6 {[%clk 00:00:18]} {[%emt 00:00:03]} Bb6 {[%clk 00:02:46]} {[%emt 00:00:04]}
50. a7 {[%clk 00:00:19]} {[%emt 00:00:04]} Bxa7 {[%clk 00:02:50]} {[%emt
00:00:01]} 51. Nxa7 {[%clk 00:00:23]} {[%emt 00:00:01]} Kg3 {[%clk 00:02:54]}
{[%emt 00:00:01]} 52. Nc6 {[%clk 00:00:23]} {[%emt 00:00:05]} Kxh4 {[%clk
00:02:58]} {[%emt 00:00:02]} 53. Ne5 {[%clk 00:00:26]} {[%emt 00:00:02]} Kg5
{[%clk 00:02:52]} {[%emt 00:00:10]} 54. Kf2 {[%clk 00:00:27]} {[%emt 00:00:04]}
Kf5 {[%clk 00:02:54]} {[%emt 00:00:03]} 55. Nd3 {[%clk 00:00:23]} {[%emt
00:00:09]} g5 {[%clk 00:02:56]} {[%emt 00:00:03]} 56. Kg3 {[%clk 00:00:19]}
{[%emt 00:00:09]} Ke6 {[%clk 00:01:53]} {[%emt 00:01:09]} 57. Nf2 {[%clk
00:00:20]} {[%emt 00:00:03]} Kf5 {[%clk 00:01:51]} {[%emt 00:00:06]} 58. Nd3
Ke6 {[%clk 00:01:51]} 1/2-1/2

[Event "The Schackveckan 2023: Göteborg open"]
[Site "Göteborgs schackcentrum, Vegagatan 20, Gothenburg, Sweden"]
[Date "2023.08.11"]
[Round "1.7"]
[White "Johansson, Jan"]
[Black "Johansson, William"]
[Result "0-1"]
[TimeControl "15 minutes + 5 seconds per move from move one (Round 1 - 4) / 90 minutes + 30 seconds per move from move one (Round 5 - 8)"]
[WhiteFideId "1747568"]
[BlackFideId "1744070"]
[WhiteElo "1694"]
[BlackElo "2052"]

1. d4 {[%clk 00:15:09]} {[%emt 00:00:01]} Nf6 {[%clk 00:15:09]} {[%emt
00:00:01]} 2. Nf3 {[%clk 00:15:12]} {[%emt 00:00:02]} d5 {[%clk 00:15:12]}
{[%emt 00:00:01]} 3. c3 {[%clk 00:15:15]} {[%emt 00:00:02]} Bf5 {[%clk
00:15:04]} {[%emt 00:00:13]} 4. Bf4 {[%clk 00:15:10]} {[%emt 00:00:10]} e6
{[%clk 00:14:25]} {[%emt 00:00:45]} 5. e3 {[%clk 00:15:12]} {[%emt 00:00:02]}
Be7 {[%clk 00:14:06]} {[%emt 00:00:24]} 6. Bd3 {[%clk 00:15:14]} {[%emt
00:00:02]} Bg6 {[%clk 00:14:06]} {[%emt 00:00:05]} 7. Ne5 {[%clk 00:14:57]}
{[%emt 00:00:22]} Nbd7 {[%clk 00:14:03]} {[%emt 00:00:09]} 8. Qc2 {[%clk
00:13:55]} {[%emt 00:01:07]} Rc8 {[%clk 00:14:05]} {[%emt 00:00:03]} 9. Nd2
{[%clk 00:13:53]} {[%emt 00:00:06]} c5 {[%clk 00:14:05]} {[%emt 00:00:05]} 10.
O-O {[%clk 00:13:44]} {[%emt 00:00:14]} c4 {[%clk 00:14:05]} {[%emt 00:00:05]}
11. Bxg6 {[%clk 00:13:46]} {[%emt 00:00:03]} hxg6 {[%clk 00:14:09]} {[%emt
00:00:02]} 12. a4 {[%clk 00:13:34]} {[%emt 00:00:17]} Nh5 {[%clk 00:13:21]}
{[%emt 00:00:53]} 13. Nxg6 {[%clk 00:13:11]} {[%emt 00:00:27]} fxg6 {[%clk
00:13:25]} {[%emt 00:00:02]} 14. Qxg6+ {[%clk 00:13:15]} {[%emt 00:00:01]} Kf8
{[%clk 00:13:26]} {[%emt 00:00:04]} 15. Qxe6 {[%clk 00:12:52]} {[%emt
00:00:27]} Nxf4 {[%clk 00:13:27]} {[%emt 00:00:04]} 16. exf4 {[%clk 00:12:55]}
{[%emt 00:00:02]} Nf6 {[%clk 00:13:01]} {[%emt 00:00:31]} 17. Rfe1 {[%clk
00:11:30]} {[%emt 00:01:31]} Rc6 {[%clk 00:12:50]} {[%emt 00:00:16]} 18. Qf5
{[%clk 00:11:09]} {[%emt 00:00:25]} Rh5 {[%clk 00:12:36]} {[%emt 00:00:19]} 19.
Qg6 {[%clk 00:10:57]} {[%emt 00:00:17]} Rh6 {[%clk 00:12:38]} {[%emt 00:00:04]}
20. Qc2 {[%clk 00:10:14]} {[%emt 00:00:47]} Bd6 {[%clk 00:12:18]} {[%emt
00:00:25]} 21. g3 {[%clk 00:09:47]} {[%emt 00:00:32]} Qd7 {[%clk 00:11:51]}
{[%emt 00:00:32]} 22. h4 {[%clk 00:09:04]} {[%emt 00:00:48]} Qg4 {[%clk
00:10:29]} {[%emt 00:01:27]} 23. Re3 {[%clk 00:08:39]} {[%emt 00:00:31]} Bxf4
{[%clk 00:10:10]} {[%emt 00:00:24]} 24. Rae1 {[%clk 00:08:20]} {[%emt
00:00:23]} Bxe3 {[%clk 00:10:02]} {[%emt 00:00:14]} 25. Rxe3 {[%clk 00:08:23]}
{[%emt 00:00:01]} Re6 {[%clk 00:09:50]} {[%emt 00:00:17]} 26. Rxe6 {[%clk
00:06:33]} {[%emt 00:01:56]} Qxe6 {[%clk 00:09:52]} {[%emt 00:00:02]} 27. Nf3
{[%clk 00:06:30]} {[%emt 00:00:08]} Qe4 {[%clk 00:09:54]} {[%emt 00:00:04]} 28.
Qd1 {[%clk 00:06:12]} {[%emt 00:00:22]} Qd3 {[%clk 00:09:46]} {[%emt 00:00:14]}
29. Ng5 {[%clk 00:05:57]} {[%emt 00:00:19]} Qxd1+ {[%clk 00:09:48]} {[%emt
00:00:04]} 0-1

[Event "The Schackveckan 2023: Göteborg open"]
[Site "Göteborgs schackcentrum, Vegagatan 20, Gothenburg, Sweden"]
[Date "2023.08.11"]
[Round "1.8"]
[White "Svensson, Leif"]
[Black "Granath, Andreas"]
[Result "1-0"]
[TimeControl "15 minutes + 5 seconds per move from move one (Round 1 - 4) / 90 minutes + 30 seconds per move from move one (Round 5 - 8)"]
[WhiteFideId "1702459"]
[BlackFideId "1743333"]
[WhiteElo "2038"]
[BlackElo "1673"]

1. d4 {[%clk 00:15:09]} Nf6 {[%clk 00:15:08]} {[%emt 00:00:02]} 2. Nc3 {[%clk
00:15:12]} {[%emt 00:00:02]} e6 {[%clk 00:15:12]} {[%emt 00:00:01]} 3. e4
{[%clk 00:15:15]} {[%emt 00:00:02]} d5 {[%clk 00:15:05]} {[%emt 00:00:11]} 4.
Bg5 {[%clk 00:15:18]} {[%emt 00:00:02]} dxe4 {[%clk 00:14:57]} {[%emt
00:00:15]} 5. Nxe4 {[%clk 00:15:21]} {[%emt 00:00:03]} Be7 {[%clk 00:14:50]}
{[%emt 00:00:11]} 6. Bxf6 {[%clk 00:15:23]} {[%emt 00:00:03]} Bxf6 {[%clk
00:14:53]} {[%emt 00:00:02]} 7. Nf3 {[%clk 00:15:24]} {[%emt 00:00:03]} O-O
{[%clk 00:14:36]} {[%emt 00:00:22]} 8. Qd2 {[%clk 00:15:27]} {[%emt 00:00:01]}
h6 {[%clk 00:14:17]} {[%emt 00:00:24]} 9. O-O-O {[%clk 00:15:01]} {[%emt
00:00:32]} b6 {[%clk 00:13:07]} {[%emt 00:01:15]} 10. Qe3 {[%clk 00:15:00]}
{[%emt 00:00:05]} Bb7 {[%clk 00:12:38]} {[%emt 00:00:34]} 11. Bd3 {[%clk
00:15:00]} {[%emt 00:00:05]} Nd7 {[%clk 00:12:01]} {[%emt 00:00:42]} 12. Kb1
{[%clk 00:14:30]} {[%emt 00:00:36]} Qe7 {[%clk 00:11:53]} {[%emt 00:00:13]} 13.
g4 {[%clk 00:14:26]} {[%emt 00:00:08]} e5 {[%clk 00:09:26]} {[%emt 00:02:32]}
14. Rhg1 {[%clk 00:12:44]} {[%emt 00:01:47]} exd4 {[%clk 00:09:13]} {[%emt
00:00:18]} 15. Nxd4 {[%clk 00:12:37]} {[%emt 00:00:12]} Nc5 {[%clk 00:08:44]}
{[%emt 00:00:33]} 16. Nf5 {[%clk 00:09:50]} {[%emt 00:02:53]} Qe5 {[%clk
00:08:14]} {[%emt 00:00:35]} 17. Nxf6+ {[%clk 00:09:47]} {[%emt 00:00:08]} Qxf6
{[%clk 00:08:06]} {[%emt 00:00:13]} 18. g5 {[%clk 00:09:23]} {[%emt 00:00:30]}
hxg5 {[%clk 00:07:42]} {[%emt 00:00:29]} 19. Rxg5 {[%clk 00:09:26]} {[%emt
00:00:02]} Ne6 {[%clk 00:06:43]} {[%emt 00:01:03]} 20. Rgg1 {[%clk 00:08:06]}
{[%emt 00:01:25]} Rad8 {[%clk 00:05:52]} {[%emt 00:00:57]} 21. Qh3 {[%clk
00:07:59]} {[%emt 00:00:12]} Ng5 {[%clk 00:05:25]} {[%emt 00:00:31]} 22. Qh4
{[%clk 00:07:27]} {[%emt 00:00:37]} Rxd3 {[%clk 00:04:09]} {[%emt 00:01:21]} 23.
Rxd3 {[%clk 00:07:20]} {[%emt 00:00:13]} Qxf5 {[%clk 00:03:20]} {[%emt
00:00:53]} 24. Qxg5 {[%clk 00:07:17]} {[%emt 00:00:09]} Qxg5 {[%clk 00:03:23]}
{[%emt 00:00:02]} 25. Rxg5 {[%clk 00:07:21]} Re8 {[%clk 00:03:14]} {[%emt
00:00:13]} 26. b3 {[%clk 00:07:24]} {[%emt 00:00:02]} Re2 {[%clk 00:03:08]}
{[%emt 00:00:09]} 27. Rd8+ {[%clk 00:06:52]} {[%emt 00:00:39]} Kh7 {[%clk
00:03:12]} {[%emt 00:00:02]} 28. Rd7 {[%clk 00:06:35]} {[%emt 00:00:21]} Rxf2
{[%clk 00:03:11]} {[%emt 00:00:06]} 29. Rxc7 {[%clk 00:06:34]} {[%emt
00:00:06]} Be4 {[%clk 00:03:11]} {[%emt 00:00:05]} 30. Kb2 {[%clk 00:06:37]}
{[%emt 00:00:03]} Kh6 {[%clk 00:03:08]} {[%emt 00:00:07]} 31. Rg4 {[%clk
00:06:37]} {[%emt 00:00:05]} Bg6 {[%clk 00:02:50]} {[%emt 00:00:23]} 32. h4
{[%clk 00:06:26]} {[%emt 00:00:17]} Kh5 {[%clk 00:02:43]} {[%emt 00:00:12]} 33.
Ra4 {[%clk 00:06:26]} {[%emt 00:00:05]} a5 {[%clk 00:02:36]} {[%emt 00:00:12]}
34. Rd4 {[%clk 00:06:18]} {[%emt 00:00:13]} f5 {[%clk 00:02:35]} {[%emt
00:00:05]} 35. Rxg7 {[%clk 00:06:11]} {[%emt 00:00:12]} Kh6 {[%clk 00:02:18]}
{[%emt 00:00:22]} 36. Rc7 {[%clk 00:05:55]} {[%emt 00:00:21]} f4 {[%clk
00:02:20]} {[%emt 00:00:03]} 37. Rc6 {[%clk 00:05:49]} {[%emt 00:00:11]} f3
{[%clk 00:02:13]} {[%emt 00:00:12]} 38. Rg4 {[%clk 00:05:42]} {[%emt 00:00:12]}
Kh5 {[%clk 00:01:18]} {[%emt 00:01:00]} 39. Rcxg6 {[%clk 00:05:43]} {[%emt
00:00:05]} Rh2 {[%clk 00:01:09]} {[%emt 00:00:14]} 40. R6g5+ {[%clk 00:05:45]}
{[%emt 00:00:03]} Kh6 {[%clk 00:01:12]} {[%emt 00:00:02]} 41. Rf5 {[%clk
00:05:48]} f2 {[%clk 00:00:58]} {[%emt 00:00:19]} 42. Rf8 {[%clk 00:05:41]}
{[%emt 00:00:13]} Kh5 {[%clk 00:00:56]} {[%emt 00:00:07]} 43. Rgf4 {[%clk
00:05:44]} 1-0

[Event "The Schackveckan 2023: Göteborg open"]
[Site "Göteborgs schackcentrum, Vegagatan 20, Gothenburg, Sweden"]
[Date "2023.08.11"]
[Round "1.10"]
[White "Bengtsson, Siv"]
[Black "Thern, Alfred"]
[Result "1-0"]
[TimeControl "15 minutes + 5 seconds per move from move one (Round 1 - 4) / 90 minutes + 30 seconds per move from move one (Round 5 - 8)"]
[WhiteFideId "1701673"]
[BlackFideId "1775227"]
[WhiteElo "2010"]
[BlackElo "1643"]

1. e4 {[%clk 00:15:09]} {[%emt 00:00:01]} e5 {[%clk 00:15:00]} {[%emt
00:00:11]} 2. Nf3 {[%clk 00:15:09]} {[%emt 00:00:04]} Nc6 {[%clk 00:14:48]}
{[%emt 00:00:18]} 3. Bb5 {[%clk 00:15:10]} {[%emt 00:00:04]} a6 {[%clk
00:14:36]} {[%emt 00:00:17]} 4. Ba4 {[%clk 00:15:10]} {[%emt 00:00:04]} Nf6
{[%clk 00:14:40]} {[%emt 00:00:03]} 5. d3 {[%clk 00:15:07]} {[%emt 00:00:07]}
d6 {[%clk 00:14:21]} {[%emt 00:00:25]} 6. c3 {[%clk 00:15:05]} {[%emt
00:00:06]} Be7 {[%clk 00:14:19]} {[%emt 00:00:07]} 7. Nbd2 {[%clk 00:14:46]}
{[%emt 00:00:24]} O-O {[%clk 00:14:18]} {[%emt 00:00:06]} 8. O-O {[%clk
00:14:41]} {[%emt 00:00:10]} Re8 {[%clk 00:14:15]} {[%emt 00:00:09]} 9. Re1
{[%clk 00:14:30]} {[%emt 00:00:15]} Bf8 {[%clk 00:14:03]} {[%emt 00:00:17]} 10.
Nf1 {[%clk 00:14:06]} {[%emt 00:00:29]} g6 {[%clk 00:13:28]} {[%emt 00:00:40]}
11. Bg5 {[%clk 00:13:17]} {[%emt 00:00:52]} Bg7 {[%clk 00:13:25]} {[%emt
00:00:09]} 12. Qd2 {[%clk 00:12:52]} {[%emt 00:00:30]} b5 {[%clk 00:12:48]}
{[%emt 00:00:44]} 13. Bc2 {[%clk 00:12:16]} {[%emt 00:00:40]} Bb7 {[%clk
00:11:47]} {[%emt 00:01:06]} 14. a4 {[%clk 00:11:09]} {[%emt 00:01:12]} Qd7
{[%clk 00:11:26]} {[%emt 00:00:26]} 15. d4 {[%clk 00:09:46]} {[%emt 00:01:28]}
d5 {[%clk 00:09:56]} {[%emt 00:01:36]} 16. exd5 {[%clk 00:08:52]} {[%emt
00:00:58]} Nxd5 {[%clk 00:09:16]} {[%emt 00:00:46]} 17. axb5 {[%clk 00:08:47]}
{[%emt 00:00:10]} axb5 {[%clk 00:09:13]} {[%emt 00:00:10]} 18. Rxa8 {[%clk
00:08:49]} {[%emt 00:00:01]} Bxa8 {[%clk 00:08:50]} {[%emt 00:00:29]} 19. dxe5
{[%clk 00:06:34]} {[%emt 00:02:19]} Nxe5 {[%clk 00:08:24]} {[%emt 00:00:32]} 20.
Nxe5 {[%clk 00:06:37]} {[%emt 00:00:02]} Rxe5 {[%clk 00:07:39]} {[%emt
00:00:49]} 21. Rxe5 {[%clk 00:05:52]} {[%emt 00:00:50]} Bxe5 {[%clk 00:07:42]}
{[%emt 00:00:02]} 22. Be4 {[%clk 00:05:35]} {[%emt 00:00:21]} c6 {[%clk
00:06:50]} {[%emt 00:00:59]} 23. Bf3 {[%clk 00:04:30]} {[%emt 00:01:09]} Qd6
{[%clk 00:05:23]} {[%emt 00:01:33]} 24. h3 {[%clk 00:03:49]} {[%emt 00:00:43]}
f5 {[%clk 00:03:45]} {[%emt 00:01:45]} 25. Qe2 {[%clk 00:03:14]} {[%emt
00:00:40]} f4 {[%clk 00:02:40]} {[%emt 00:01:10]} 26. Nd2 {[%clk 00:02:35]}
{[%emt 00:00:44]} Nf6 {[%clk 00:01:00]} {[%emt 00:01:46]} 27. Bxf6 {[%clk
00:02:06]} {[%emt 00:00:33]} Qxf6 {[%clk 00:00:54]} {[%emt 00:00:11]} 28. Ne4
{[%clk 00:02:09]} {[%emt 00:00:02]} Qe7 {[%clk 00:00:56]} {[%emt 00:00:03]} 29.
Nd2 {[%clk 00:01:23]} {[%emt 00:00:50]} Bd6 {[%clk 00:00:35]} {[%emt 00:00:27]}
30. Qxe7 {[%clk 00:00:43]} {[%emt 00:00:45]} Bxe7 {[%clk 00:00:39]} {[%emt
00:00:02]} 31. Nb3 {[%clk 00:00:46]} {[%emt 00:00:01]} Bd8 {[%clk 00:00:19]}
{[%emt 00:00:26]} 32. Nd4 {[%clk 00:00:42]} {[%emt 00:00:09]} c5 {[%clk
00:00:10]} {[%emt 00:00:14]} 33. Nxb5 {[%clk 00:00:42]} {[%emt 00:00:07]} Bxf3
{[%clk 00:00:14]} 34. gxf3 {[%clk 00:00:45]} Bb6 {[%clk 00:00:09]} {[%emt
00:00:10]} 35. Nd6 {[%clk 00:00:36]} {[%emt 00:00:14]} Kf8 {[%clk 00:00:07]}
{[%emt 00:00:07]} 36. Kf1 {[%clk 00:00:39]} Bc7 {[%clk 00:00:07]} {[%emt
00:00:06]} 37. Ne4 {[%clk 00:00:43]} {[%emt 00:00:01]} Bb6 {[%clk 00:00:10]}
{[%emt 00:00:02]} 38. Ke2 {[%clk 00:00:39]} {[%emt 00:00:09]} Ke7 {[%clk
00:00:14]} 39. Kd3 {[%clk 00:00:43]} {[%emt 00:00:01]} Kd7 {[%clk 00:00:06]}
{[%emt 00:00:13]} 40. Nf6+ {[%clk 00:00:47]} Kd6 {[%clk 00:00:10]} {[%emt
00:00:01]} 41. Nxh7 {[%clk 00:00:50]} {[%emt 00:00:02]} c4+ {[%clk 00:00:15]}
{[%emt 00:00:01]} 42. Kxc4 {[%clk 00:00:54]} Bxf2 {[%clk 00:00:18]} {[%emt
00:00:01]} 43. Ng5 {[%clk 00:00:52]} {[%emt 00:00:06]} Ba7 {[%clk 00:00:14]}
{[%emt 00:00:11]} 44. b4 {[%clk 00:00:53]} {[%emt 00:00:03]} Kc6 {[%clk
00:00:14]} {[%emt 00:00:05]} 45. Ne4 {[%clk 00:00:50]} {[%emt 00:00:08]} Be3
{[%clk 00:00:16]} {[%emt 00:00:04]} 46. b5+ {[%clk 00:00:45]} {[%emt 00:00:10]}
Kb6 {[%clk 00:00:17]} {[%emt 00:00:03]} 47. Kb4 {[%clk 00:00:45]} {[%emt
00:00:04]} Bc1 {[%clk 00:00:08]} {[%emt 00:00:14]} 48. c4 {[%clk 00:00:44]}
{[%emt 00:00:05]} Bb2 {[%clk 00:00:12]} {[%emt 00:00:03]} 49. c5+ {[%clk
00:00:46]} {[%emt 00:00:02]} Kc7 {[%clk 00:00:16]} {[%emt 00:00:02]} 50. Ng5
{[%clk 00:00:41]} {[%emt 00:00:09]} Bf6 {[%clk 00:00:14]} {[%emt 00:00:08]} 51.
Ne6+ {[%clk 00:00:43]} {[%emt 00:00:02]} 1-0

[Event "The Schackveckan 2023: Göteborg open"]
[Site "Göteborgs schackcentrum, Vegagatan 20, Gothenburg, Sweden"]
[Date "2023.08.11"]
[Round "1.11"]
[White "Imani Lasaki, Hamed"]
[Black "Krantz, Martin"]
[Result "0-1"]
[TimeControl "15 minutes + 5 seconds per move from move one (Round 1 - 4) / 90 minutes + 30 seconds per move from move one (Round 5 - 8)"]
[WhiteFideId "1766970"]
[BlackFideId "1724100"]
[WhiteElo "1624"]
[BlackElo "2000"]

1. e4 {[%clk 00:15:09]} {[%emt 00:00:01]} c5 {[%clk 00:15:06]} {[%emt
00:00:04]} 2. Nf3 {[%clk 00:15:12]} {[%emt 00:00:02]} Nc6 {[%clk 00:15:06]}
{[%emt 00:00:04]} 3. d4 {[%clk 00:15:11]} {[%emt 00:00:06]} cxd4 {[%clk
00:15:05]} {[%emt 00:00:06]} 4. Nxd4 {[%clk 00:15:14]} {[%emt 00:00:03]} e5
{[%clk 00:15:05]} {[%emt 00:00:04]} 5. Nf3 {[%clk 00:14:55]} {[%emt 00:00:24]}
Nf6 {[%clk 00:14:30]} {[%emt 00:00:41]} 6. Nc3 {[%clk 00:14:59]} {[%emt
00:00:02]} Bb4 {[%clk 00:14:00]} {[%emt 00:00:34]} 7. Bd3 {[%clk 00:14:01]}
{[%emt 00:01:03]} d5 {[%clk 00:12:36]} {[%emt 00:01:29]} 8. O-O {[%clk
00:12:09]} {[%emt 00:01:58]} Bxc3 {[%clk 00:11:49]} {[%emt 00:00:52]} 9. bxc3
{[%clk 00:12:11]} {[%emt 00:00:02]} dxe4 {[%clk 00:11:36]} {[%emt 00:00:19]} 10.
Nxe5 {[%clk 00:11:29]} {[%emt 00:00:48]} Nxe5 {[%clk 00:09:24]} {[%emt
00:02:16]} 11. Bb5+ {[%clk 00:10:58]} {[%emt 00:00:36]} Bd7 {[%clk 00:09:22]}
{[%emt 00:00:07]} 12. Qe2 {[%clk 00:10:34]} {[%emt 00:00:29]} O-O {[%clk
00:09:14]} {[%emt 00:00:13]} 13. Rd1 {[%clk 00:10:11]} {[%emt 00:00:28]} Qb6
{[%clk 00:08:24]} {[%emt 00:00:54]} 14. a4 {[%clk 00:09:51]} {[%emt 00:00:26]}
a6 {[%clk 00:08:01]} {[%emt 00:00:29]} 15. Be3 {[%clk 00:09:53]} {[%emt
00:00:01]} Qc7 {[%clk 00:07:59]} {[%emt 00:00:07]} 16. Bxd7 {[%clk 00:09:40]}
{[%emt 00:00:19]} Nexd7 {[%clk 00:08:00]} {[%emt 00:00:04]} 17. Rab1 {[%clk
00:08:53]} {[%emt 00:00:52]} b6 {[%clk 00:07:17]} {[%emt 00:00:47]} 18. g3
{[%clk 00:08:23]} {[%emt 00:00:37]} Rac8 {[%clk 00:07:08]} {[%emt 00:00:13]} 19.
Qxa6 {[%clk 00:07:41]} {[%emt 00:00:48]} Qxc3 {[%clk 00:06:49]} {[%emt
00:00:24]} 20. Qb7 {[%clk 00:06:59]} {[%emt 00:00:47]} Qc6 {[%clk 00:06:21]}
{[%emt 00:00:32]} 21. Qa6 {[%clk 00:06:11]} {[%emt 00:00:53]} Ra8 {[%clk
00:06:10]} {[%emt 00:00:16]} 22. Qe2 {[%clk 00:05:01]} {[%emt 00:01:15]} Rxa4
{[%clk 00:05:40]} {[%emt 00:00:35]} 23. Rb2 {[%clk 00:04:35]} {[%emt 00:00:32]}
Rfa8 {[%clk 00:05:21]} {[%emt 00:00:23]} 24. Rdb1 {[%clk 00:04:16]} {[%emt
00:00:25]} Ra1 {[%clk 00:05:10]} {[%emt 00:00:16]} 25. Qd1 {[%clk 00:03:48]}
{[%emt 00:00:32]} Rxb1 {[%emt 00:00:24]} 26. Qxb1 {[%clk 00:03:50]} Nd5 {[%clk
00:04:29]} {[%emt 00:00:29]} 27. Ra2 {[%clk 00:02:41]} {[%emt 00:01:14]} Rxa2
{[%clk 00:04:16]} {[%emt 00:00:18]} 28. Qxa2 {[%clk 00:02:45]} {[%emt
00:00:01]} h6 {[%clk 00:04:09]} {[%emt 00:00:12]} 29. c4 {[%clk 00:02:31]}
{[%emt 00:00:19]} Nxe3 {[%clk 00:04:07]} {[%emt 00:00:07]} 30. fxe3 {[%clk
00:02:35]} Ne5 {[%clk 00:04:00]} {[%emt 00:00:13]} 31. Qd2 {[%clk 00:01:57]}
{[%emt 00:00:42]} Nf3+ {[%clk 00:04:00]} {[%emt 00:00:05]} 0-1